[Event "Titled Tuesday Blitz May 23 Early 2023"]
[White "Thiel, Thomas"]
[Black "Turzo, Attila"]
[WhiteFideId "4615964"]
[BlackFideId "704954"]
[WhiteElo "2242"]
[BlackElo "2469"]
[Result "0-1"]
[Round "02"]
[TimeControl "180+2"]
[Date "2023.05.23"]
[WhiteClock "0:00:00"]
[BlackClock "0:00:13"]

1. e4 {[%clk 0:03:00]}  d6 {[%clk 0:02:59]} 2. d4 {[%clk 0:02:59]}  Nf6 {[%clk 0:03:00]} 3. Nc3 {[%clk 0:02:57]}  g6 {[%clk 0:03:01]} 4. Bc4 {[%clk 0:02:55]}  c6 {[%clk 0:02:54]} 5. Qe2 {[%clk 0:02:54]}  d5 {[%clk 0:02:52]} 6. exd5 {[%clk 0:02:49]}  cxd5 {[%clk 0:02:51]} 7. Bxd5 {[%clk 0:02:49]}  Nxd5 {[%clk 0:02:40]} 8. Qb5+ {[%clk 0:02:48]}  Nc6 {[%clk 0:02:40]} 9. Qxd5 {[%clk 0:02:47]}  Nxd4 {[%clk 0:02:37]} 10. Qxd8+ {[%clk 0:02:12]}  Kxd8 {[%clk 0:02:36]} 11. Kf1 {[%clk 0:02:12]}  Nxc2 {[%clk 0:02:34]} 12. Rb1 {[%clk 0:02:11]}  Bf5 {[%clk 0:02:33]} 13. Bf4 {[%clk 0:02:06]}  Bg7 {[%clk 0:02:03]} 14. Rd1+ {[%clk 0:02:03]}  Bd7 {[%clk 0:01:59]} 15. Nge2 {[%clk 0:01:59]}  Nb4 {[%clk 0:01:45]} 16. a3 {[%clk 0:01:54]}  Nc6 {[%clk 0:01:42]} 17. g3 {[%clk 0:01:53]}  e5 {[%clk 0:01:23]} 18. Be3 {[%clk 0:01:51]}  Kc8 {[%clk 0:00:49]} 19. Kg2 {[%clk 0:01:50]}  Be6 {[%clk 0:00:47]} 20. Nb5 {[%clk 0:01:43]}  Rd8 {[%clk 0:00:44]} 21. Nec3 {[%clk 0:01:39]}  Nd4 {[%clk 0:00:41]} 22. Rhe1 {[%clk 0:01:12]}  b6 {[%clk 0:00:34]} 23. Bxd4 {[%clk 0:01:02]}  exd4 {[%clk 0:00:35]} 24. Ne4 {[%clk 0:01:01]}  Kb7 {[%clk 0:00:30]} 25. Ned6+ {[%clk 0:00:50]}  Kc6 {[%clk 0:00:18]} 26. Rc1+ {[%clk 0:00:48]}  Kd5 {[%clk 0:00:18]} 27. Nc4 {[%clk 0:00:42]}  Rac8 {[%clk 0:00:17]} 28. Nd2 {[%clk 0:00:40]}  Rc5 {[%clk 0:00:16]} 29. Nc7+ {[%clk 0:00:18]}  Kc6 {[%clk 0:00:16]} 30. Nxe6 {[%clk 0:00:17]}  fxe6 {[%clk 0:00:17]} 31. Rxe6+ {[%clk 0:00:15]}  Kd7 {[%clk 0:00:16]} 32. Rxc5 {[%clk 0:00:13]}  bxc5 {[%clk 0:00:17]} 33. Ra6 {[%clk 0:00:10]}  Be5 {[%clk 0:00:14]} 34. Rxa7+ {[%clk 0:00:08]}  Bc7 {[%clk 0:00:14]} 35. Nc4 {[%clk 0:00:07]}  Kc6 {[%clk 0:00:14]} 36. Na5+ {[%clk 0:00:04]}  Bxa5 {[%clk 0:00:13]} 37. Rxa5 {[%clk 0:00:00]}  d3 {[%clk 0:00:13]} 0-1


[Site "https://www.chess.com"]

[Event "Titled Tuesday Blitz May 23 Early 2023"]
[White "Rodchenkov, Sergey D."]
[Black "Aanna12"]
[WhiteFideId "4168712"]
[WhiteElo "2277"]
[BlackElo "2221"]
[Result "1-0"]
[Round "02"]
[TimeControl "180+2"]
[Date "2023.05.23"]
[WhiteClock "0:00:13"]
[BlackClock "0:00:10"]

1. e4 {[%clk 0:02:57]}  c5 {[%clk 0:02:59]} 2. Nf3 {[%clk 0:02:58]}  d6 {[%clk 0:02:58]} 3. d4 {[%clk 0:02:58]}  cxd4 {[%clk 0:02:58]} 4. Nxd4 {[%clk 0:02:59]}  Nf6 {[%clk 0:02:59]} 5. Nc3 {[%clk 0:03:00]}  a6 {[%clk 0:02:59]} 6. Be3 {[%clk 0:02:59]}  e5 {[%clk 0:02:58]} 7. Nb3 {[%clk 0:02:57]}  Be7 {[%clk 0:02:58]} 8. f3 {[%clk 0:02:56]}  Be6 {[%clk 0:02:58]} 9. Qd2 {[%clk 0:02:51]}  Nbd7 {[%clk 0:02:56]} 10. g4 {[%clk 0:02:48]}  h6 {[%clk 0:02:55]} 11. O-O-O {[%clk 0:02:46]}  b5 {[%clk 0:02:53]} 12. Kb1 {[%clk 0:02:18]}  Nb6 {[%clk 0:02:53]} 13. Na5 {[%clk 0:02:14]}  Qc7 {[%clk 0:02:23]} 14. a3 {[%clk 0:02:03]}  Rc8 {[%clk 0:02:22]} 15. h4 {[%clk 0:02:00]}  Nc4 {[%clk 0:02:06]} 16. Bxc4 {[%clk 0:01:53]}  Bxc4 {[%clk 0:02:02]} 17. Nxc4 {[%clk 0:01:36]}  Qxc4 {[%clk 0:02:02]} 18. g5 {[%clk 0:01:36]}  Nh5 {[%clk 0:02:01]} 19. Nd5 {[%clk 0:01:30]}  Bd8 {[%clk 0:01:51]} 20. gxh6 {[%clk 0:01:29]}  gxh6 {[%clk 0:01:50]} 21. Bxh6 {[%clk 0:01:26]}  Ng3 {[%clk 0:01:25]} 22. Rhg1 {[%clk 0:00:51]}  Ne2 {[%clk 0:01:24]} 23. b3 {[%clk 0:00:47]}  Nc3+ {[%clk 0:00:51]} 24. Nxc3 {[%clk 0:00:31]}  Qxc3 {[%clk 0:00:51]} 25. Qxc3 {[%clk 0:00:32]}  Rxc3 {[%clk 0:00:51]} 26. Rxd6 {[%clk 0:00:32]}  Bxh4 {[%clk 0:00:48]} 27. Kb2 {[%clk 0:00:26]}  Rxf3 {[%clk 0:00:47]} 28. Bg7 {[%clk 0:00:21]}  Rg8 {[%clk 0:00:42]} 29. Rxa6 {[%clk 0:00:18]}  Kd7 {[%clk 0:00:40]} 30. Ra7+ {[%clk 0:00:18]}  Ke6 {[%clk 0:00:40]} 31. Ra6+ {[%clk 0:00:18]}  Kd7 {[%clk 0:00:40]} 32. Rd1+ {[%clk 0:00:17]}  Ke7 {[%clk 0:00:38]} 33. Ra7+ {[%clk 0:00:14]}  Ke6 {[%clk 0:00:37]} 34. Ra6+ {[%clk 0:00:15]}  Ke7 {[%clk 0:00:36]} 35. Bxe5 {[%clk 0:00:15]}  Rg4 {[%clk 0:00:32]} 36. Rh6 {[%clk 0:00:12]}  Rxe4 {[%clk 0:00:29]} 37. Bd6+ {[%clk 0:00:12]}  Ke8 {[%clk 0:00:22]} 38. Rh8+ {[%clk 0:00:12]}  Kd7 {[%clk 0:00:21]} 39. Bg3+ {[%clk 0:00:13]}  Ke6 {[%clk 0:00:17]} 40. Bxh4 {[%clk 0:00:13]}  f5 {[%clk 0:00:10]} 41. Re8+ {[%clk 0:00:13]} 1-0


[Site "https://www.chess.com"]

[Event "Titled Tuesday Blitz May 23 Early 2023"]
[White "Antonova, Nadezhda"]
[Black "Bilan, Danila"]
[WhiteFideId "14700182"]
[BlackFideId "24161918"]
[WhiteElo "1799"]
[BlackElo "2182"]
[Result "1-0"]
[Round "02"]
[TimeControl "180+2"]
[Date "2023.05.23"]
[WhiteClock "0:00:15"]
[BlackClock "0:00:00"]

1. Nf3 {[%clk 0:02:58]}  d5 {[%clk 0:03:00]} 2. b3 {[%clk 0:02:58]}  Nf6 {[%clk 0:02:59]} 3. Bb2 {[%clk 0:02:59]}  c5 {[%clk 0:02:59]} 4. e3 {[%clk 0:02:58]}  Nc6 {[%clk 0:02:59]} 5. Bb5 {[%clk 0:02:59]}  Qb6 {[%clk 0:03:00]} 6. Qe2 {[%clk 0:02:56]}  Bg4 {[%clk 0:02:59]} 7. Bxc6+ {[%clk 0:02:53]}  Qxc6 {[%clk 0:02:58]} 8. h3 {[%clk 0:02:53]}  Bh5 {[%clk 0:02:56]} 9. g4 {[%clk 0:02:53]}  Bg6 {[%clk 0:02:42]} 10. Ne5 {[%clk 0:02:52]}  Qb6 {[%clk 0:02:27]} 11. d3 {[%clk 0:02:50]}  e6 {[%clk 0:02:15]} 12. h4 {[%clk 0:02:45]}  h5 {[%clk 0:01:59]} 13. Nxg6 {[%clk 0:02:44]}  fxg6 {[%clk 0:02:00]} 14. g5 {[%clk 0:02:44]}  Nd7 {[%clk 0:01:52]} 15. f4 {[%clk 0:02:42]}  Kf7 {[%clk 0:01:33]} 16. Nd2 {[%clk 0:02:40]}  Bd6 {[%clk 0:01:27]} 17. O-O {[%clk 0:02:35]}  Rhf8 {[%clk 0:01:25]} 18. e4 {[%clk 0:02:25]}  Rae8 {[%clk 0:01:18]} 19. e5 {[%clk 0:01:55]}  Be7 {[%clk 0:01:11]} 20. c4 {[%clk 0:01:49]}  Qc6 {[%clk 0:00:59]} 21. Rae1 {[%clk 0:01:30]}  b5 {[%clk 0:00:54]} 22. f5 {[%clk 0:01:14]}  d4 {[%clk 0:00:09]} 23. cxb5 {[%clk 0:00:42]}  Qxb5 {[%clk 0:00:07]} 24. fxg6+ {[%clk 0:00:37]}  Kxg6 {[%clk 0:00:08]} 25. Qe4+ {[%clk 0:00:36]}  Rf5 {[%clk 0:00:08]} 26. Nc4 {[%clk 0:00:25]}  Rf8 {[%clk 0:00:04]} 27. Nd6 {[%clk 0:00:20]}  Bxd6 {[%clk 0:00:05]} 28. exd6 {[%clk 0:00:20]}  e5 {[%clk 0:00:00]} 29. Rxf5 {[%clk 0:00:15]} 1-0


[Site "https://www.chess.com"]

[Event "Titled Tuesday Blitz May 23 Early 2023"]
[White "Avazkhonov, Alikhon"]
[Black "Nugumanov, Bakhtiyar"]
[WhiteFideId "14208504"]
[BlackFideId "13701797"]
[WhiteElo "1739"]
[BlackElo "2209"]
[Result "1-0"]
[Round "02"]
[TimeControl "180+2"]
[Date "2023.05.23"]
[WhiteClock "0:00:05"]
[BlackClock "0:00:04"]

1. e4 {[%clk 0:02:59]}  e6 {[%clk 0:02:59]} 2. d4 {[%clk 0:02:59]}  d5 {[%clk 0:03:00]} 3. Nd2 {[%clk 0:03:00]}  Be7 {[%clk 0:03:00]} 4. Ngf3 {[%clk 0:02:59]}  Nf6 {[%clk 0:02:59]} 5. e5 {[%clk 0:02:59]}  Nfd7 {[%clk 0:03:00]} 6. Bd3 {[%clk 0:03:00]}  c5 {[%clk 0:03:00]} 7. c3 {[%clk 0:03:00]}  Nc6 {[%clk 0:03:00]} 8. O-O {[%clk 0:03:01]}  a5 {[%clk 0:02:35]} 9. b3 {[%clk 0:02:54]}  Qb6 {[%clk 0:02:31]} 10. Bb2 {[%clk 0:02:55]}  a4 {[%clk 0:02:17]} 11. Rb1 {[%clk 0:02:52]}  a3 {[%clk 0:02:16]} 12. Ba1 {[%clk 0:02:53]}  O-O {[%clk 0:02:13]} 13. Qe2 {[%clk 0:02:25]}  cxd4 {[%clk 0:02:04]} 14. cxd4 {[%clk 0:02:17]}  Nb4 {[%clk 0:02:01]} 15. Rfd1 {[%clk 0:01:03]}  Nxa2 {[%clk 0:01:55]} 16. Nc4 {[%clk 0:01:03]}  dxc4 {[%clk 0:01:51]} 17. bxc4 {[%clk 0:01:04]}  Nb4 {[%clk 0:01:48]} 18. c5 {[%clk 0:01:05]}  Nxc5 {[%clk 0:01:10]} 19. dxc5 {[%clk 0:01:04]}  Qxc5 {[%clk 0:01:11]} 20. Qe4 {[%clk 0:00:46]}  Nxd3 {[%clk 0:01:09]} 21. Rxd3 {[%clk 0:00:43]}  Qc2 {[%clk 0:00:42]} 22. Rbd1 {[%clk 0:00:40]}  Ra4 {[%clk 0:00:41]} 23. Nd4 {[%clk 0:00:25]}  Qc7 {[%clk 0:00:22]} 24. Nxe6 {[%clk 0:00:07]}  Rxe4 {[%clk 0:00:11]} 25. Nxc7 {[%clk 0:00:08]}  Bf5 {[%clk 0:00:08]} 26. Nd5 {[%clk 0:00:07]}  Bc5 {[%clk 0:00:07]} 27. Rc3 {[%clk 0:00:03]}  b6 {[%clk 0:00:07]} 28. Rxc5 {[%clk 0:00:03]}  bxc5 {[%clk 0:00:07]} 29. Ne7+ {[%clk 0:00:03]}  Kh8 {[%clk 0:00:06]} 30. Nxf5 {[%clk 0:00:04]}  g6 {[%clk 0:00:04]} 31. e6+ {[%clk 0:00:03]}  f6 {[%clk 0:00:04]} 32. e7 {[%clk 0:00:04]}  Re8 {[%clk 0:00:04]} 33. Bxf6+ {[%clk 0:00:04]}  Kg8 {[%clk 0:00:04]} 34. Nh6# {[%clk 0:00:05]} 1-0


[Site "https://www.chess.com"]

[Event "Titled Tuesday Blitz May 23 Early 2023"]
[White "Castellanos Gomez, Alejandro"]
[Black "Guevara Sanchez, Erick Marvin"]
[WhiteFideId "22284141"]
[BlackFideId "6700136"]
[WhiteElo "2158"]
[BlackElo "2040"]
[Result "1-0"]
[Round "02"]
[TimeControl "180+2"]
[Date "2023.05.23"]
[WhiteClock "0:00:51"]
[BlackClock "0:00:47"]

1. d4 {[%clk 0:03:00]}  Nf6 {[%clk 0:02:59]} 2. Bf4 {[%clk 0:02:59]}  g6 {[%clk 0:02:57]} 3. h4 {[%clk 0:02:53]}  Bg7 {[%clk 0:02:56]} 4. Nf3 {[%clk 0:02:53]}  O-O {[%clk 0:02:55]} 5. Nc3 {[%clk 0:02:53]}  d6 {[%clk 0:02:48]} 6. e4 {[%clk 0:02:52]}  Nbd7 {[%clk 0:02:45]} 7. Qd2 {[%clk 0:02:51]}  c5 {[%clk 0:02:44]} 8. d5 {[%clk 0:02:38]}  a6 {[%clk 0:02:42]} 9. h5 {[%clk 0:02:35]}  Nxh5 {[%clk 0:02:38]} 10. Bh6 {[%clk 0:02:34]}  Ndf6 {[%clk 0:02:37]} 11. Bxg7 {[%clk 0:02:17]}  Nxg7 {[%clk 0:02:36]} 12. O-O-O {[%clk 0:02:11]}  b5 {[%clk 0:02:33]} 13. Qh6 {[%clk 0:01:51]}  Ngh5 {[%clk 0:02:28]} 14. Ng5 {[%clk 0:01:43]}  b4 {[%clk 0:01:52]} 15. Ne2 {[%clk 0:01:42]}  Qa5 {[%clk 0:01:48]} 16. Kb1 {[%clk 0:01:20]}  Bg4 {[%clk 0:01:42]} 17. f3 {[%clk 0:01:18]}  Bd7 {[%clk 0:01:34]} 18. g4 {[%clk 0:01:11]}  Ng7 {[%clk 0:01:30]} 19. e5 {[%clk 0:01:06]}  dxe5 {[%clk 0:01:27]} 20. Nxh7 {[%clk 0:00:53]}  b3 {[%clk 0:00:47]} 21. Nxf6+ {[%clk 0:00:52]}  exf6 {[%clk 0:00:47]} 22. Qh8# {[%clk 0:00:51]} 1-0


[Site "https://www.chess.com"]

[Event "Titled Tuesday Blitz May 23 Early 2023"]
[White "Arcos Facio, Mateo"]
[Black "Zaitsev, Alexander"]
[WhiteFideId "3001199"]
[BlackFideId "4164490"]
[WhiteElo "2156"]
[BlackElo "2373"]
[Result "0-1"]
[Round "02"]
[TimeControl "180+2"]
[Date "2023.05.23"]
[WhiteClock "0:00:00"]
[BlackClock "0:00:05"]

1. e4 {[%clk 0:03:00]}  c5 {[%clk 0:02:59]} 2. Nf3 {[%clk 0:03:00]}  g6 {[%clk 0:03:00]} 3. c3 {[%clk 0:02:55]}  Bg7 {[%clk 0:02:59]} 4. d4 {[%clk 0:02:54]}  cxd4 {[%clk 0:02:59]} 5. Bc4 {[%clk 0:02:52]}  dxc3 {[%clk 0:02:29]} 6. Qb3 {[%clk 0:02:33]}  e6 {[%clk 0:02:20]} 7. Nxc3 {[%clk 0:02:32]}  Nc6 {[%clk 0:01:58]} 8. Bg5 {[%clk 0:02:21]}  Nge7 {[%clk 0:01:47]} 9. Nb5 {[%clk 0:02:14]}  O-O {[%clk 0:01:33]} 10. O-O {[%clk 0:02:02]}  d5 {[%clk 0:01:21]} 11. Bd3 {[%clk 0:01:08]}  a6 {[%clk 0:01:06]} 12. Nc3 {[%clk 0:01:05]}  d4 {[%clk 0:01:06]} 13. Na4 {[%clk 0:01:02]}  e5 {[%clk 0:00:46]} 14. Nb6 {[%clk 0:01:00]}  Be6 {[%clk 0:00:45]} 15. Nd5 {[%clk 0:00:52]}  Bxd5 {[%clk 0:00:38]} 16. exd5 {[%clk 0:00:51]}  Qxd5 {[%clk 0:00:39]} 17. Qxb7 {[%clk 0:00:44]}  Ra7 {[%clk 0:00:28]} 18. Qb3 {[%clk 0:00:30]}  Rb8 {[%clk 0:00:16]} 19. Qxd5 {[%clk 0:00:27]}  Nxd5 {[%clk 0:00:17]} 20. Be4 {[%clk 0:00:26]}  Rd7 {[%clk 0:00:14]} 21. Rac1 {[%clk 0:00:19]}  Nce7 {[%clk 0:00:14]} 22. b3 {[%clk 0:00:14]}  Nc3 {[%clk 0:00:14]} 23. Rfe1 {[%clk 0:00:09]}  f5 {[%clk 0:00:13]} 24. Bd3 {[%clk 0:00:08]}  e4 {[%clk 0:00:13]} 25. Bc4+ {[%clk 0:00:08]}  Kf8 {[%clk 0:00:14]} 26. Nh4 {[%clk 0:00:07]}  Nc6 {[%clk 0:00:07]} 27. Bf4 {[%clk 0:00:08]}  Be5 {[%clk 0:00:06]} 28. Bh6+ {[%clk 0:00:03]}  Bg7 {[%clk 0:00:06]} 29. Bf4 {[%clk 0:00:02]}  Ne5 {[%clk 0:00:06]} 30. h3 {[%clk 0:00:00]}  Rbd8 {[%clk 0:00:05]} 0-1


[Site "https://www.chess.com"]

[Event "Titled Tuesday Blitz May 23 Early 2023"]
[White "Filipascu"]
[Black "Cardozo Munar, Carlos Eduardo"]
[BlackFideId "4409477"]
[WhiteElo "2451"]
[BlackElo "2067"]
[Result "1-0"]
[Round "02"]
[TimeControl "180+2"]
[Date "2023.05.23"]
[WhiteClock "0:00:37"]
[BlackClock "0:00:31"]

1. c4 {[%clk 0:02:55]}  c6 {[%clk 0:02:57]} 2. d4 {[%clk 0:02:52]}  d5 {[%clk 0:02:57]} 3. Nf3 {[%clk 0:02:50]}  Nf6 {[%clk 0:02:57]} 4. e3 {[%clk 0:02:50]}  e6 {[%clk 0:02:56]} 5. Nc3 {[%clk 0:02:50]}  Nbd7 {[%clk 0:02:56]} 6. Bd3 {[%clk 0:02:50]}  Bd6 {[%clk 0:02:56]} 7. e4 {[%clk 0:02:50]}  dxe4 {[%clk 0:02:55]} 8. Nxe4 {[%clk 0:02:51]}  Nxe4 {[%clk 0:02:55]} 9. Bxe4 {[%clk 0:02:52]}  e5 {[%clk 0:02:53]} 10. O-O {[%clk 0:02:47]}  O-O {[%clk 0:02:49]} 11. dxe5 {[%clk 0:02:44]}  Nxe5 {[%clk 0:02:49]} 12. Nxe5 {[%clk 0:02:34]}  Bxe5 {[%clk 0:02:50]} 13. Bxh7+ {[%clk 0:02:34]}  Kxh7 {[%clk 0:02:45]} 14. Qh5+ {[%clk 0:02:35]}  Kg8 {[%clk 0:02:45]} 15. Qxe5 {[%clk 0:02:36]}  Re8 {[%clk 0:02:40]} 16. Qg3 {[%clk 0:02:35]}  Be6 {[%clk 0:02:33]} 17. b3 {[%clk 0:02:34]}  Qd4 {[%clk 0:02:33]} 18. Be3 {[%clk 0:02:33]}  Qb2 {[%clk 0:02:21]} 19. Rab1 {[%clk 0:02:27]}  Qf6 {[%clk 0:02:18]} 20. Rbd1 {[%clk 0:02:23]}  a5 {[%clk 0:02:15]} 21. Bd4 {[%clk 0:02:22]}  Qh6 {[%clk 0:02:12]} 22. f4 {[%clk 0:02:15]}  Rad8 {[%clk 0:02:08]} 23. f5 {[%clk 0:02:14]}  Bc8 {[%clk 0:02:08]} 24. f6 {[%clk 0:01:54]}  g6 {[%clk 0:02:07]} 25. Be3 {[%clk 0:01:46]}  Qh5 {[%clk 0:01:52]} 26. Rxd8 {[%clk 0:01:39]}  Rxd8 {[%clk 0:01:53]} 27. Qc7 {[%clk 0:01:37]}  Re8 {[%clk 0:01:52]} 28. Qf4 {[%clk 0:01:29]}  Qe2 {[%clk 0:01:44]} 29. Bc5 {[%clk 0:01:18]}  Kh7 {[%clk 0:01:21]} 30. h3 {[%clk 0:01:05]}  Qe5 {[%clk 0:01:12]} 31. Qxe5 {[%clk 0:00:50]}  Rxe5 {[%clk 0:01:13]} 32. Bb6 {[%clk 0:00:49]}  Be6 {[%clk 0:01:09]} 33. Kf2 {[%clk 0:00:48]}  a4 {[%clk 0:01:09]} 34. g4 {[%clk 0:00:39]}  axb3 {[%clk 0:01:05]} 35. axb3 {[%clk 0:00:39]}  g5 {[%clk 0:01:00]} 36. Kf3 {[%clk 0:00:39]}  Kg6 {[%clk 0:00:57]} 37. Bc7 {[%clk 0:00:36]}  Kxf6 {[%clk 0:00:46]} 38. Kg3+ {[%clk 0:00:34]}  Kg6 {[%clk 0:00:33]} 39. Bxe5 {[%clk 0:00:33]}  b5 {[%clk 0:00:33]} 40. Rf6+ {[%clk 0:00:33]}  Kh7 {[%clk 0:00:32]} 41. cxb5 {[%clk 0:00:34]}  cxb5 {[%clk 0:00:31]} 42. b4 {[%clk 0:00:35]}  Bc4 {[%clk 0:00:31]} 43. h4 {[%clk 0:00:34]}  gxh4+ {[%clk 0:00:31]} 44. Kxh4 {[%clk 0:00:35]}  Kg8 {[%clk 0:00:31]} 45. Kg5 {[%clk 0:00:36]}  Kh7 {[%clk 0:00:31]} 46. Rh6+ {[%clk 0:00:36]}  Kg8 {[%clk 0:00:31]} 47. Rh8# {[%clk 0:00:37]} 1-0


[Site "https://www.chess.com"]

[Event "Titled Tuesday Blitz May 23 Early 2023"]
[White "UNSTOPPABLE_LEGEND"]
[Black "Tarnowska, Aleksandra"]
[BlackFideId "1180967"]
[WhiteElo "2451"]
[BlackElo "1776"]
[Result "1-0"]
[Round "02"]
[TimeControl "180+2"]
[Date "2023.05.23"]
[WhiteClock "0:01:48"]
[BlackClock "0:00:03"]

1. c4 {[%clk 0:02:59]}  Nf6 {[%clk 0:02:57]} 2. Nc3 {[%clk 0:02:57]}  e5 {[%clk 0:02:57]} 3. Nf3 {[%clk 0:02:56]}  Nc6 {[%clk 0:02:58]} 4. e3 {[%clk 0:02:56]}  Bb4 {[%clk 0:02:51]} 5. Nd5 {[%clk 0:02:51]}  e4 {[%clk 0:02:05]} 6. Nxb4 {[%clk 0:02:43]}  Nxb4 {[%clk 0:01:55]} 7. Nd4 {[%clk 0:02:40]}  c5 {[%clk 0:01:19]} 8. a3 {[%clk 0:02:38]}  cxd4 {[%clk 0:01:17]} 9. axb4 {[%clk 0:02:37]}  d3 {[%clk 0:01:15]} 10. g4 {[%clk 0:02:33]}  d5 {[%clk 0:01:13]} 11. g5 {[%clk 0:02:32]}  Bg4 {[%clk 0:00:43]} 12. Qa4+ {[%clk 0:02:30]}  Nd7 {[%clk 0:00:42]} 13. Rg1 {[%clk 0:02:26]}  Be6 {[%clk 0:00:21]} 14. cxd5 {[%clk 0:02:03]}  Bxd5 {[%clk 0:00:22]} 15. b5 {[%clk 0:02:03]}  O-O {[%clk 0:00:21]} 16. Qd4 {[%clk 0:02:02]}  Nb6 {[%clk 0:00:13]} 17. b4 {[%clk 0:02:00]}  Qe7 {[%clk 0:00:10]} 18. Bb2 {[%clk 0:01:59]}  f6 {[%clk 0:00:07]} 19. gxf6 {[%clk 0:01:59]}  Rxf6 {[%clk 0:00:07]} 20. Qxf6 {[%clk 0:01:59]}  Qxf6 {[%clk 0:00:04]} 21. Bxf6 {[%clk 0:02:00]}  g6 {[%clk 0:00:05]} 22. h4 {[%clk 0:02:00]}  Nc4 {[%clk 0:00:03]} 23. Bd4 {[%clk 0:01:56]}  Nd6 {[%clk 0:00:03]} 24. Rxa7 {[%clk 0:01:55]}  Rxa7 {[%clk 0:00:01]} 25. Bxa7 {[%clk 0:01:56]}  Nxb5 {[%clk 0:00:02]} 26. Bd4 {[%clk 0:01:54]}  Na3 {[%clk 0:00:02]} 27. Bh3 {[%clk 0:01:53]}  Nc2+ {[%clk 0:00:02]} 28. Kd1 {[%clk 0:01:53]}  Kf7 {[%clk 0:00:03]} 29. Kc1 {[%clk 0:01:53]}  Nxb4 {[%clk 0:00:03]} 30. Kb2 {[%clk 0:01:53]}  Nc6 {[%clk 0:00:02]} 31. Kc3 {[%clk 0:01:53]}  b5 {[%clk 0:00:02]} 32. Rb1 {[%clk 0:01:54]}  b4+ {[%clk 0:00:02]} 33. Rxb4 {[%clk 0:01:54]}  Nxb4 {[%clk 0:00:02]} 34. Kxb4 {[%clk 0:01:54]}  h5 {[%clk 0:00:02]} 35. Kc5 {[%clk 0:01:54]}  Bb3 {[%clk 0:00:02]} 36. Kd6 {[%clk 0:01:54]}  Ba4 {[%clk 0:00:02]} 37. Ke5 {[%clk 0:01:54]}  Bd1 {[%clk 0:00:02]} 38. Kxe4 {[%clk 0:01:54]}  Be2 {[%clk 0:00:03]} 39. Bg2 {[%clk 0:01:52]}  Ke6 {[%clk 0:00:03]} 40. Bf3 {[%clk 0:01:53]}  Bf1 {[%clk 0:00:03]} 41. Kf4 {[%clk 0:01:53]}  Kf7 {[%clk 0:00:03]} 42. Be4 {[%clk 0:01:53]}  Be2 {[%clk 0:00:02]} 43. Kg5 {[%clk 0:01:53]}  Bf1 {[%clk 0:00:01]} 44. Bxg6+ {[%clk 0:01:54]}  Ke6 {[%clk 0:00:02]} 45. Bxh5 {[%clk 0:01:54]}  Bg2 {[%clk 0:00:02]} 46. Bg4+ {[%clk 0:01:55]}  Kf7 {[%clk 0:00:02]} 47. h5 {[%clk 0:01:55]}  Kg8 {[%clk 0:00:03]} 48. h6 {[%clk 0:01:56]}  Be4 {[%clk 0:00:04]} 49. Be6+ {[%clk 0:01:56]}  Kh7 {[%clk 0:00:04]} 50. Bg7 {[%clk 0:01:56]}  Bg6 {[%clk 0:00:02]} 51. Bf5 {[%clk 0:01:56]}  Kg8 {[%clk 0:00:02]} 52. Bd4 {[%clk 0:01:52]}  Bf7 {[%clk 0:00:02]} 53. h7+ {[%clk 0:01:52]}  Kf8 {[%clk 0:00:02]} 54. Kf6 {[%clk 0:01:50]}  Bd5 {[%clk 0:00:02]} 55. h8=Q+ {[%clk 0:01:49]}  Bg8 {[%clk 0:00:03]} 56. Qg7+ {[%clk 0:01:47]}  Ke8 {[%clk 0:00:03]} 57. Qe7# {[%clk 0:01:48]} 1-0


[Site "https://www.chess.com"]